fUST/lending_fUST_20241109
["ID","MTS","AMOUNT","RATE_DAILY","PERIOD"]
[341711639,1731115841557,-704.14,0.00023303,2]
[341711640,1731115841567,-1110.23,0.00023303,2]
[341711641,1731115841576,-500.0,0.00023303,2]
[341711642,1731115841594,-500.0,0.00023303,2]
[341711643,1731115841602,-500.0,0.00023322,2]
[341711644,1731115841612,-500.0,0.00023322,2]
[341711645,1731115841621,-500.0,0.00023322,2]
[341711646,1731115841630,-500.0,0.00023322,2]
[341711647,1731115841639,-500.0,0.00023322,2]
[341711648,1731115841649,-500.0,0.00023322,2]
[341711649,1731115841658,-500.0,0.00023322,2]
[341711650,1731115841667,-532.06493491,0.00023322,2]
[341711651,1731115841676,-500.0,0.00023322,2]
[341711652,1731115841684,-500.0,0.00023322,2]
[341711653,1731115841694,-500.0,0.00023322,2]
[341711654,1731115841703,-592.32,0.00023322,2]
[341711655,1731115841711,-500.0,0.00023322,2]
[341711656,1731115841721,-602.87163071,0.00023322,2]
[341711657,1731115841730,-500.0,0.00023322,2]
[341711658,1731115841739,-454.76332606,0.00023322,2]
[341711659,1731115841749,-500.0,0.00023322,2]
[341711660,1731115841758,-500.0,0.00023322,2]
[341711661,1731115841767,-500.0,0.00023322,2]
[341711662,1731115841777,-500.0,0.00023322,2]
[341711663,1731115841787,-500.0,0.00023322,2]
[341711664,1731115841796,-500.0,0.00023322,2]
[341711665,1731115841807,-174.96499581,0.00023322,2]
[341711666,1731115841817,-500.0,0.00023323,2]
[341711667,1731115841826,-180.69786622,0.00023323,2]
[341711668,1731115841835,-500.0,0.00023323,2]
[341711669,1731115841844,-500.0,0.00023323,2]
[341711670,1731115841854,-322.88877168,0.00023323,2]
[341711671,1731115841864,-500.0,0.00023323,2]
[341711672,1731115841874,-193.01477318,0.00023323,2]
[341711673,1731115841883,-500.0,0.00023323,2]
[341711674,1731115841892,-416.23076496,0.00023323,2]
[341711675,1731115841901,-500.0,0.00023323,2]
[341711676,1731115841910,-637.47,0.00023323,2]
[341711677,1731115841920,-500.0,0.00023323,2]
[341711678,1731115841929,-500.0,0.00023323,2]
[341711679,1731115841938,-500.0,0.00023323,2]
[341711680,1731115841947,-500.0,0.00023323,2]
[341711681,1731115841957,-594.4,0.00023323,2]
[341711682,1731115841966,-500.0,0.00023323,2]
[341711683,1731115841975,-500.0,0.00023323,2]
[341711684,1731115841984,-500.0,0.00023323,2]
[341711685,1731115841993,-177.95053109,0.00023323,2]
[341711686,1731115842002,-500.0,0.00023323,2]
[341711687,1731115842012,-500.0,0.00023323,2]
[341711688,1731115842021,-160.620598,0.00023323,2]
[341711689,1731115842030,-500.0,0.00023323,2]
[341711690,1731115842040,-500.0,0.00023323,2]
[341711691,1731115842049,-530.50999597,0.00023323,2]
[341711692,1731115842059,-500.0,0.00023323,2]
[341711693,1731115842068,-512.1569902,0.00023324,2]
[341711694,1731115842077,-500.0,0.00023324,2]
[341711695,1731115842086,-500.0,0.00023324,2]
[341711696,1731115842096,-8463.06424041,0.00023348,2]
[341711697,1731115842106,-295.603318,0.00023379,2]
[341711698,1731115842117,-212.76927822,0.00023425,2]
[341711699,1731115842126,-420.0,0.00023439,2]
[341711700,1731115842135,-605.4125267,0.000235,2]
[341711701,1731115842144,-500.0,0.00023545,2]
[341711702,1731115842154,-500.0,0.00023563,2]
[341711703,1731115842163,-500.0,0.00023563,2]
[341711704,1731115842172,-295.40934092,0.00023563,2]
[341711705,1731115842181,-500.0,0.00023563,2]
[341711706,1731115842192,-173.56623192,0.00023563,2]
[341711707,1731115842201,-256.83172398,0.00023563,2]
[341711708,1731115842211,-378.86785514,0.00023563,2]
[341711709,1731115842220,-500.0,0.00023563,2]
[341711710,1731115842229,-500.0,0.00023564,2]
[341711711,1731115842239,-500.0,0.00023564,2]
[341711712,1731115842248,-501.11341868,0.00023564,2]
[341711713,1731115842258,-500.0,0.00023564,2]
[341711714,1731115842267,-531.38,0.00023577,2]
[341711715,1731115842276,-704.14,0.00023577,2]
[341711716,1731115842285,-1110.23,0.00023577,2]
[341711717,1731115842294,-346.2002278,0.00023577,2]
[341711718,1731115842303,-564.20410518,0.00023577,2]
[341711719,1731115842312,-501.0675274,0.00023589,2]
[341711720,1731115842322,-502.26241525,0.00023589,2]
[341711721,1731115842331,-470.06,0.00023596,2]
[341711722,1731115842340,-500.0,0.00023596,2]
[341711723,1731115842349,-500.0,0.00023596,2]
[341711724,1731115842358,-500.0,0.00023596,2]
[341711725,1731115842368,-500.0,0.00023596,2]
[341711726,1731115842377,-608.82424072,0.00023596,2]
[341711727,1731115842387,-500.0,0.00023596,2]
[341711728,1731115842396,-500.0,0.00023596,2]
[341711729,1731115842405,-151.0,0.00023596,7]
[341711730,1731115842414,-500.0,0.00023597,2]
[341711731,1731115842423,-500.0,0.00023597,2]
[341711732,1731115842433,-500.0,0.00023597,2]
[341711733,1731115842446,-500.0,0.00023597,2]
[341711734,1731115842455,-500.0,0.00023597,2]
[341711735,1731115842464,-500.0,0.00023597,2]
[341711736,1731115842474,-500.0,0.00023597,2]
[341711737,1731115842484,-500.0,0.00023597,2]
[341711738,1731115842493,-500.0,0.00023597,2]
[341711739,1731115842503,-437.4730819,0.00023597,2]
[341711740,1731115842514,-500.0,0.00023597,2]
[341711741,1731115842523,-500.0,0.00023597,2]
[341711742,1731115842532,-500.0,0.00023597,2]
[341711743,1731115842543,-195.69788911,0.00023597,2]
[341711744,1731115842552,-201.40917526,0.00023614,2]
[341711745,1731115842561,-500.0,0.00023619,2]
[341711746,1731115842570,-420.0,0.00023716,2]
[341711747,1731115842579,-8463.06424041,0.00023723,2]
[341711748,1731115842589,-531.38,0.00023851,2]
[341711749,1731115842598,-704.14,0.00023851,2]
[341711750,1731115842607,-1110.23,0.00023851,2]
[341711751,1731115842617,-187.30912772,0.0002387,2]
[341711752,1731115842626,-500.0,0.0002387,2]
[341711753,1731115842635,-500.0,0.0002387,2]
[341711754,1731115842644,-500.0,0.00023871,2]
[341711755,1731115842653,-500.0,0.00023871,2]
[341711756,1731115842663,-234.25376616,0.00023871,2]
[341711757,1731115842672,-613.54,0.00023871,2]
[341711758,1731115842683,-500.0,0.00023871,2]
[341711759,1731115842693,-500.0,0.00023871,2]
[341711760,1731115842702,-532.36279572,0.00023871,2]
[341711761,1731115842711,-500.89101891,0.00023971,2]
[341711762,1731115842720,-8463.06424041,0.00024015,2]
[341711763,1731115842728,-1097.96038462,0.00024073,2]
[341711764,1731115842737,-531.38,0.00024125,2]
[341711765,1731115842746,-704.14,0.00024125,2]
[341711766,1731115842755,-1110.23,0.00024125,2]
[341711767,1731115842764,-500.0,0.00024144,2]
[341711768,1731115842773,-151.0,0.00024144,7]
[341711769,1731115842783,-442.11,0.00024144,2]
[341711770,1731115842792,-151.0,0.00024144,7]
[341711771,1731115842801,-500.0,0.00024145,2]
[341711772,1731115842810,-500.0,0.00024145,2]
[341711773,1731115842819,-500.0,0.00024145,2]
[341711774,1731115842828,-164.872083,0.00024224,2]
[341711775,1731115842837,-8463.06424041,0.00024327,2]
[341711776,1731115842846,-151.0,0.0002435,7]
[341711777,1731115842855,-531.38,0.00024399,2]
[341711778,1731115842866,-704.14,0.00024399,2]
[341711779,1731115842875,-1110.23,0.00024399,2]
[341711780,1731115842884,-500.0,0.00024418,2]
[341711781,1731115842893,-500.0,0.00024419,2]
[341711782,1731115842903,-500.0,0.00024419,2]
[341711783,1731115842912,-500.0,0.00024442,2]
[341711784,1731115842921,-510.15727013,0.00024442,2]
[341711785,1731115842931,-1000.0,0.00024442,2]
[341711786,1731115842940,-151.0,0.00024486,7]
[341711787,1731115842949,-166.886877,0.00024585,2]
[341711788,1731115842958,-461.09397423,0.0002464,2]
[341711789,1731115842967,-8463.06424041,0.00024655,2]
[341711790,1731115842977,-531.38,0.00024673,2]
[341711791,1731115842986,-704.14,0.00024673,2]
[341711792,1731115842995,-1110.23,0.00024673,2]
[341711793,1731115843005,-489.92427404,0.00024692,2]
[341711794,1731115843014,-500.0,0.00024693,2]
[341711795,1731115843024,-620.8,0.00024693,2]
[341711796,1731115843033,-8463.06424041,0.00024753,2]
[341711797,1731115843042,-501.82739154,0.00024933,2]
[341711798,1731115843052,-531.38,0.00024947,2]
[341711799,1731115843062,-704.14,0.00024947,2]
[341711800,1731115843071,-1110.23,0.00024947,2]
[341711801,1731115843080,-624.75999999,0.00024967,2]
[341711802,1731115843089,-18823.14106018,0.00025,2]
[341711804,1731115843099,-8463.06424041,0.00025006,2]
[341711805,1731115843107,-531.38,0.00025221,2]
[341711806,1731115843118,-704.14,0.00025221,2]
[341711807,1731115843128,-1110.23,0.00025221,2]
[341711808,1731115843137,-201.533624,0.00025221,7]
[341711809,1731115843146,-8463.06424041,0.00025234,2]
[341711810,1731115843156,-151.0,0.0002524,7]
[341711811,1731115843165,-151.0,0.0002524,7]
[341711812,1731115843174,-587.0,0.00025482,2]
[341711813,1731115843184,-531.38,0.00025495,2]
[341711814,1731115843193,-704.14,0.00025495,2]
[341711815,1731115843202,-1110.23,0.00025495,2]
[341711816,1731115843211,-391.83325,0.00025527,2]
[341711817,1731115843220,-1097.96038462,0.00025552,2]
[341711818,1731115843230,-8463.06424041,0.00025725,2]
[341711819,1731115843239,-531.38,0.00025769,2]
[341711820,1731115843248,-704.14,0.00025769,2]
[341711821,1731115843257,-1110.23,0.00025769,2]
[341711823,1731115843267,-20128.33980552,0.0002599,7]
[341711825,1731115843276,-151.0,0.0002599,7]
[341711827,1731115843285,-531.38,0.00026043,2]
[341711828,1731115843294,-704.14,0.00026043,2]
[341711829,1731115843303,-1110.23,0.00026043,2]
[341711830,1731115843313,-461.09397423,0.00026044,2]
[341711831,1731115843322,-151.0,0.00026062,7]
[341711832,1731115843331,-377.0,0.00026088,2]
[341711833,1731115843341,-531.38,0.00026317,2]
[341711834,1731115843350,-704.14,0.00026317,2]
[341711835,1731115843359,-1110.23,0.00026317,2]
[341711836,1731115843370,-531.38,0.00026591,2]
[341711837,1731115843379,-704.14,0.00026591,2]
[341711838,1731115843388,-1110.23,0.00026591,2]
[341711839,1731115843397,-261.2225,0.00026797,2]
[341711840,1731115843406,-600.0,0.00026849,2]
[341711841,1731115843415,-531.38,0.00026865,2]
[341711842,1731115843423,-704.14,0.00026865,2]
[341711843,1731115843433,-1110.23,0.00026865,2]
[341711844,1731115843446,-1517.24910458,0.00026947,2]
[341711845,1731115843455,-1097.96038462,0.0002703,2]
[341711846,1731115843464,-531.38,0.00027139,2]
[341711847,1731115843473,-704.14,0.00027139,2]
[341711848,1731115843483,-1110.23,0.00027139,2]
[341711849,1731115843493,-175.815459,0.00027397,7]
[341711850,1731115843503,-151.0,0.00027397,7]
[341711851,1731115843511,-500.0,0.00027397,2]
[341711852,1731115843523,-500.0,0.00027397,2]
[341711853,1731115843534,-500.0,0.00027397,2]
[341711854,1731115843543,-500.0,0.00027397,2]
[341711855,1731115843552,-500.0,0.00027397,2]
[341711856,1731115843561,-500.0,0.00027397,2]
[341711857,1731115843571,-500.0,0.00027397,2]
[341711858,1731115843580,-500.0,0.00027397,2]
[341711863,1731115843669,-500.0,0.00027397,2]
[341711865,1731115843679,-440.62433715,0.00027397,2]
[341711867,1731115843688,-500.0,0.00027397,2]
[341711869,1731115843698,-500.0,0.00027397,2]
[341711871,1731115843707,-500.0,0.00027397,2]
[341711873,1731115843716,-500.0,0.00027397,2]
[341711875,1731115843725,-500.0,0.00027397,2]
[341711877,1731115843735,-603.54738893,0.00027397,2]
[341711879,1731115843744,-531.38,0.00027413,2]
[341711881,1731115843753,-704.14,0.00027413,2]
[341711883,1731115843762,-1110.23,0.00027413,2]
[341711885,1731115843771,-461.09397423,0.00027448,2]
[341711887,1731115843781,-531.38,0.00027687,2]
[341711889,1731115843790,-704.14,0.00027687,2]
[341711891,1731115843800,-1110.23,0.00027687,2]
[341711893,1731115843809,-823.0,0.00027703,2]
[341711895,1731115843819,-531.38,0.00027961,2]
[341711897,1731115843828,-704.14,0.00027961,2]
[341711899,1731115843838,-1110.23,0.00027961,2]
[341711901,1731115843847,-200.0,0.00028,120]
[341711903,1731115843857,-500.0,0.00028166,7]
[341711905,1731115843868,-531.39811206,0.00028235,2]
[341711907,1731115843877,-704.36,0.00028235,2]
[341711909,1731115843886,-1110.3789773,0.00028235,2]
[341711911,1731115843895,-1138.0,0.00028467,2]
[341711913,1731115843904,-529.0,0.00028467,2]
[341711915,1731115843914,-2394.0,0.00028467,2]
[341711917,1731115843923,-150.641,0.00028467,2]
[341711919,1731115843932,-1097.96038462,0.00028508,2]
[341711921,1731115843941,-160.67333792,0.00028607,10]
[341711923,1731115843951,-78228.53834236,0.00028608,2]
[341711934,1731115844025,-27592.19376756,0.00028608,2]
[341711936,1731115844035,-151.0,0.00028608,7]
[341711938,1731115844045,-151.0,0.00028608,7]
[341711940,1731115844054,-151.0,0.00028608,7]
[341711942,1731115844063,-151.0,0.00028608,7]
[341711944,1731115844073,-294.473562,0.00028644,2]
[341711946,1731115844082,-169.119117,0.00028644,2]
[341711948,1731115844091,-215.510621,0.00028644,2]
[341711950,1731115844100,-502.39045445,0.0002866,5]
[341711952,1731115844110,-500.0,0.0002866,5]
[341711954,1731115844122,-305.58601919,0.0002866,5]
[341711956,1731115844136,-500.0,0.0002866,5]
[341711958,1731115844145,-501.85727169,0.00028767,2]
[341711960,1731115844154,-24193.47068569,0.00028845,30]
[341711962,1731115844163,-461.09397423,0.00028852,2]
[341711964,1731115844172,-215.510621,0.00029002,2]
[341711966,1731115844182,-637.36576313,0.0002924,5]
[341711968,1731115844192,-215.510621,0.0002936,2]
[341711970,1731115844203,-156.946,0.000294,30]
[341711972,1731115844213,-565.1232099,0.0002945,2]
[341711974,1731115844222,-600.0,0.00029589,4]
[341711976,1731115844232,-2052.77605384,0.000297,2]
[341711978,1731115844241,-2052.77605382,0.000297,2]
[341711980,1731115844251,-2052.77605382,0.000297,2]
[341711982,1731115844260,-2052.77605382,0.000297,2]
[341711984,1731115844270,-215.510621,0.00029718,2]
[341711986,1731115844279,-4557.12314447,0.000298,2]
[341711987,1731115844289,-4557.12314445,0.000298,2]
[341711988,1731115844298,-4557.12314445,0.000298,2]
[341711989,1731115844307,-4557.12314445,0.000298,2]
[341711990,1731115844316,-6158.32816149,0.000298,2]
[341711991,1731115844325,-6158.32816147,0.000298,2]
[341711992,1731115844334,-6158.32816147,0.000298,2]
[341711993,1731115844343,-2644.3426199,0.000298,2]
[341711994,1731115844355,-962.2256437,0.000298,2]
[341711995,1731115844367,-2127.58491051,0.000298,2]
[341711996,1731115844398,-424.17498736,0.000298,2]
[341711997,1731115844408,-177.301174,0.000298,7]
[341711998,1731115844417,-151.0,0.000298,7]
[341711999,1731115844426,-151.0,0.000298,7]
[341712000,1731115844437,-1129.69538886,0.000299,2]
[341712001,1731115844469,-10923.30605773,0.00021,2]
[341712002,1731115844480,-151.0,0.00023596,7]
[341712003,1731115844490,-1977.13594983,0.000299,2]
[341712004,1731115844499,-151.0,0.0003,120]
[341712005,1731115844508,-151.0,0.0003,120]
[341712006,1731115844520,-728.4,0.0003,2]
[341712007,1731115844529,-7408.11323499,0.0003,2]
[341712023,1731115923114,237.3206758,0.00020829,2]
[341712024,1731115981573,694.44444444,0.00020843,2]
[341712025,1731116008095,3119.0,0.00031759,60]
[341712026,1731116010907,165.300544,0.00013973,2]
[341712030,1731116214026,2844.0,0.00031724,30]
[341712031,1731116294796,694.44444444,0.00020843,2]
[341712039,1731116501093,15039.4313,0.00031731,30]
[341712041,1731116605809,694.44444444,0.00020843,2]
[341712042,1731116786247,200.6059589,0.00020792,2]
[341712060,1731116880068,446.6867918,0.00020792,2]
[341712061,1731116891326,713.302994,0.00020792,2]
[341712062,1731116917432,694.44444444,0.00020843,2]
[341712090,1731117036769,-602.3217948,0.00020892,2]
[341712108,1731117038916,-1421.3746907,0.00020892,2]
[341712109,1731117038927,-694.44444444,0.00020978,2]
[341712110,1731117038937,-300.0,0.00021012,2]
[341712111,1731117038946,-300.0,0.00021012,2]
[341712112,1731117038956,-24900.0,0.00021013,2]
[341712113,1731117038965,-713.302994,0.00021477,2]
[341712114,1731117038975,-881.58703364,0.00021817,2]
[341712115,1731117038984,-353.8407501,0.00021817,2]
[341712116,1731117038993,-512.68959634,0.00021917,2]
[341712117,1731117039002,-508.85220928,0.00021917,2]
[341712118,1731117039012,-507.58710277,0.00021917,2]
[341712119,1731117039021,-506.63294593,0.00021917,2]
[341712120,1731117039030,-500.0,0.00021917,2]
[341712121,1731117039039,-508.88168141,0.00021917,2]
[341712122,1731117039048,-333.09509527,0.00021917,2]
[341712123,1731117039058,-598.83055241,0.00021917,2]
[341712124,1731117039067,-522.86256515,0.00021917,2]
[341712125,1731117039077,-509.81110002,0.00021917,2]
[341712126,1731117039089,-504.93273833,0.00021917,2]
[341712127,1731117039098,-500.0,0.00021917,2]
[341712128,1731117039108,-507.6038534,0.00021917,2]
[341712129,1731117039117,-500.85864645,0.00021917,2]
[341712130,1731117039126,-502.7283743,0.00021917,2]
[341712131,1731117039135,-510.64104067,0.00021917,2]
[341712132,1731117039144,-520.36033444,0.00021917,2]
[341712133,1731117039153,-252.69224531,0.00021917,2]
[341712134,1731117039163,-504.99501256,0.00021917,2]
[341712135,1731117039172,-505.17683117,0.00021917,2]
[341712136,1731117039181,-508.39131982,0.00021917,2]
[341712137,1731117039190,-516.39983828,0.00021917,2]
[341712138,1731117039199,-500.0,0.00021917,2]
[341712139,1731117039208,-555.83081346,0.00021917,2]
[341712140,1731117039217,-502.51877318,0.00021917,2]
[341712141,1731117039227,-507.1143501,0.00021917,2]
[341712142,1731117039236,-506.30964444,0.00021917,2]
[341712143,1731117039246,-508.60678801,0.00021917,2]
[341712144,1731117039255,-508.10919549,0.00021917,2]
[341712145,1731117039264,-430.90088448,0.00021917,2]
[341712146,1731117039273,-510.09668333,0.00021917,2]
[341712147,1731117039282,-501.91869162,0.00021917,2]
[341712148,1731117039291,-505.96012871,0.00021917,2]
[341712149,1731117039301,-507.2495874,0.00021917,2]
[341712150,1731117039312,-504.71839041,0.00021917,2]
[341712151,1731117039322,-505.40756663,0.00021917,2]
[341712152,1731117039331,-185.778686,0.00021917,2]
[341712153,1731117039346,-503.57785803,0.00021917,2]
[341712154,1731117039358,-508.96500847,0.00021917,2]
[341712155,1731117039367,-500.0,0.00021917,2]
[341712156,1731117039376,-183.4133676,0.00021917,2]
[341712157,1731117039386,-515.67676041,0.00021917,2]
[341712158,1731117039395,-524.03012519,0.00021917,2]
[341712159,1731117039405,-500.0,0.00021917,2]
[341712160,1731117039414,-500.0,0.00021917,2]
[341712161,1731117039423,-507.39254847,0.00021917,2]
[341712162,1731117039432,-502.8562764,0.00021917,2]
[341712163,1731117039441,-305.4214533,0.00021917,2]
[341712164,1731117039450,-506.18173614,0.00021917,2]
[341712165,1731117039459,-500.0,0.00021917,2]
[341712166,1731117039468,-500.0,0.00021917,2]
[341712167,1731117039478,-500.0,0.00021917,2]
[341712168,1731117039487,-514.74657331,0.00021917,2]
[341712169,1731117039496,-609.77373909,0.00021917,2]
[341712170,1731117039506,-500.0,0.00021917,2]
[341712171,1731117039515,-500.0,0.00021917,2]
[341712172,1731117039524,-500.0,0.00021917,2]
[341712173,1731117039533,-500.0,0.00021917,2]
[341712174,1731117039542,-510.54753112,0.00021917,2]
[341712175,1731117039551,-507.34595278,0.00021917,2]
[341712176,1731117039560,-502.31910673,0.00021917,2]
[341712177,1731117039570,-512.15667199,0.00021917,2]
[341712178,1731117039579,-505.50252817,0.00021917,2]
[341712179,1731117039591,-500.0,0.00021917,2]
[341712180,1731117039600,-502.41859028,0.00021917,2]
[341712181,1731117039609,-500.0,0.00021917,2]
[341712182,1731117039620,-512.58207247,0.00021917,2]
[341712183,1731117039630,-526.28068016,0.00021917,2]
[341712184,1731117039639,-504.50141891,0.00021917,2]
[341712185,1731117039649,-517.90175474,0.00021917,2]
[341712186,1731117039658,-533.4014872,0.00021917,2]
[341712187,1731117039667,-532.65572979,0.00021917,2]
[341712188,1731117039676,-508.5779412,0.00021917,2]
[341712189,1731117039685,-510.79037525,0.00021917,2]
[341712190,1731117039696,-500.0,0.00021917,2]
[341712191,1731117039705,-537.77703382,0.00021917,2]
[341712192,1731117039714,-516.49620599,0.00021917,2]
[341712193,1731117039723,-502.68631084,0.00021917,2]
[341712194,1731117039732,-500.0,0.00021917,2]
[341712195,1731117039741,-500.0,0.00021917,2]
[341712196,1731117039750,-395.40626774,0.00021917,2]
[341712231,1731117044671,-694.44444444,0.00020944,2]
[341712232,1731117044682,-105.89148672,0.00021917,2]
[341712233,1731117044692,-507.8003788,0.00021917,2]
[341712234,1731117044702,-500.0,0.00021917,2]
[341712235,1731117044712,-500.0,0.00021917,2]
[341712236,1731117044721,-507.75005278,0.00021917,2]
[341712237,1731117044730,-519.72085336,0.00021917,2]
[341712238,1731117044740,-502.1864777,0.00021917,2]
[341712239,1731117044749,-12.29665434,0.00021917,2]
[341712240,1731117044761,-312.43505782,0.00021917,2]
[341712246,1731117046966,-175.26828784,0.00021917,2]
[341712247,1731117046976,-398.35782813,0.00021917,2]
[341712248,1731117046988,-101.64217187,0.00021917,2]
[341712249,1731117046997,-500.0,0.00021917,2]
[341712250,1731117047007,-501.28751357,0.00021917,2]
[341712251,1731117047017,-2336.0,0.00021917,2]
[341712252,1731117047027,-500.0,0.00021917,2]
[341712253,1731117047036,-510.91685379,0.00021917,2]
[341712254,1731117047045,-532.11520384,0.00021917,2]
[341712255,1731117047054,-507.71115758,0.00021917,2]
[341712256,1731117047064,-504.25752725,0.00021917,2]
[341712257,1731117047073,-526.72009308,0.00021917,2]
[341712258,1731117047083,-507.57309326,0.00021917,2]
[341712259,1731117047096,-523.5365897,0.00021917,2]
[341712260,1731117047105,-502.39300485,0.00021917,2]
[341712261,1731117047115,-501.24471262,0.00021917,2]
[341712262,1731117047125,-517.60348812,0.00021917,2]
[341712263,1731117047134,-500.0,0.00021917,2]
[341712264,1731117047144,-512.56125372,0.00021917,2]
[341712265,1731117047154,-500.0,0.00021917,2]
[341712266,1731117047163,-500.0,0.00021917,2]
[341712268,1731117047173,-500.0,0.00021917,2]
[341712269,1731117047182,-503.32595965,0.00021917,2]
[341712270,1731117047191,-415.96919498,0.00021917,2]
[341712271,1731117047201,-500.0,0.00021917,2]
[341712272,1731117047211,-500.0,0.00021917,2]
[341712273,1731117047220,-500.86019491,0.00021917,2]
[341712274,1731117047231,-512.11801464,0.00021917,2]
[341712275,1731117047240,-500.0,0.00021917,2]
[341712276,1731117047249,-500.0,0.00021917,2]
[341712277,1731117047259,-551.53489642,0.00021917,2]
[341712278,1731117047268,-500.0,0.00021917,2]
[341712279,1731117047278,-500.0,0.00021917,2]
[341712280,1731117047288,-533.1270083,0.00021917,2]
[341712281,1731117047297,-500.0,0.00021917,2]
[341712282,1731117047309,-512.5409587,0.00021917,2]
[341712283,1731117047321,-511.99639069,0.00021917,2]
[341712284,1731117047330,-567.73788141,0.00021917,2]
[341712285,1731117047339,-715.82,0.00021917,2]
[341712286,1731117047352,-503.8722551,0.00021917,2]
[341712287,1731117047363,-500.0,0.00021917,2]
[341712288,1731117047372,-511.55424733,0.00021917,2]
[341712289,1731117047381,-544.5766768,0.00021917,2]
[341712290,1731117047393,-500.0,0.00021917,2]
[341712291,1731117047402,-503.1216074,0.00021917,2]
[341712292,1731117047412,-505.08414731,0.00021917,2]
[341712293,1731117047422,-510.36922981,0.00021917,2]
[341712294,1731117047431,-500.0,0.00021917,2]
[341712295,1731117047441,-500.0,0.00021917,2]
[341712296,1731117047451,-510.98403841,0.00021917,2]
[341712297,1731117047461,-500.0,0.00021917,2]
[341712298,1731117047470,-500.0,0.00021917,2]
[341712299,1731117047479,-500.0,0.00021917,2]
[341712300,1731117047489,-200.0,0.00021917,2]
[341712301,1731117047499,-500.0,0.00021917,2]
[341712302,1731117047510,-500.0,0.00021917,2]
[341712303,1731117047519,-503.61668988,0.00021917,2]
[341712304,1731117047529,-432.36814768,0.00021917,2]
[341712305,1731117047539,-897.52,0.00021917,2]
[341712306,1731117047548,-176.2462494,0.00021917,2]
[341712307,1731117047558,-508.2964543,0.00021917,2]
[341712308,1731117047568,-500.0,0.00021917,2]
[341712309,1731117047579,-517.28675434,0.00021917,2]
[341712310,1731117047589,-513.48951411,0.00021917,2]
[341712311,1731117047601,-611.71064487,0.00021917,2]
[341712312,1731117047611,-500.0,0.00021917,2]
[341712313,1731117047620,-1183.12,0.00021917,2]
[341712314,1731117047630,-500.0,0.00021917,2]
[341712315,1731117047640,-506.95453744,0.00021917,2]
[341712316,1731117047650,-595.45329268,0.00021917,2]
[341712317,1731117047659,-503.56537683,0.00021917,2]
[341712318,1731117047669,-500.0,0.00021917,2]
[341712319,1731117047679,-500.0,0.00021917,2]
[341712320,1731117047689,-509.52731785,0.00021917,2]
[341712321,1731117047699,-500.0,0.00021917,2]
[341712322,1731117047708,-502.76659515,0.00021917,2]
[341712323,1731117047717,-501.74816819,0.00021917,2]
[341712324,1731117047727,-501.74010396,0.00021917,2]
[341712325,1731117047736,-502.05141123,0.00021917,2]
[341712326,1731117047746,-545.85761956,0.00021917,2]
[341712327,1731117047755,-526.51200612,0.00021917,2]
[341712328,1731117047764,-500.0,0.00021917,2]
[341712329,1731117047773,-504.2375638,0.00021917,2]
[341712330,1731117047783,-526.77530114,0.00021917,2]
[341712331,1731117047791,-502.32675339,0.00021917,2]
[341712332,1731117047800,-500.0,0.00021917,2]
[341712333,1731117047810,-538.48944169,0.00021917,2]
[341712334,1731117047820,-293.87294175,0.00021917,2]
[341712335,1731117047833,-219.31973169,0.00021917,2]
[341712336,1731117047846,-500.0,0.00021917,2]
[341712337,1731117047856,-541.98910636,0.00021917,2]
[341712338,1731117047866,-500.0,0.00021917,2]
[341712339,1731117047875,-506.93953131,0.00021917,2]